[Event "CCT Final-RR 2024"]
[Site "Oslo"]
[Date "2024.12.17"]
[Round "3"]
[White "Keymer, Vincent"]
[Black "Aronian, Levon"]
[Result "1/2-1/2"]
[ECO "E15"]
[WhiteElo "2733"]
[BlackElo "2747"]
[Annotator "TA"]
[PlyCount "152"]
[EventDate "2024.12.11"]
[EventType "tourn"]
[EventCountry "NOR"]
[SourceTitle "playchess.com"]
[Source "ChessBase"]
[SourceQuality "1"]
[TimeControl "600+2"]

{[%evp 13,152,19,24,15,25,22,41,45,43,47,45,30,37,46,33,21,16,17,23,15,38,7,8,8,7,0,0,0,0,0,0,0,0,0,0,0,0,0,0,0,0,0,0,0,0,0,0,0,0,0,0,0,0,0,17,23,26,23,33,16,118,37,83,0,0,0,0,0,0,0,0,0,0,0,0,0,0,0,0,-2,-2,-1,-1,-1,0,0,0,-1,-1,-1,-1,-8,0,-81,-81,-81,-81,-93,-93,-93,-8,-93,-93,-93,-93,-93,-93,-93,-8,-93,-93,-93,-93,-93,-8,-93,-8,-8,-8,-8,-8,-8,-8,-8,29958,-8,-8,-8,29958,-8,0,-8,-8,-8,-8,-8,-8,-8,-8,-8,0]} 1. c4 {[%emt 0:00:02]} Nf6 {[%emt 0:00:04]} 2. Nf3 {[%emt 0:00:02]} b6 {[%emt 0:00:06]} 3. d4 {[%emt 0:00:06]} e6 {[%emt 0:00:02]} 4. g3 {[%emt 0:00:01]} Ba6 {[%emt 0:00:02]} 5. b3 {[%emt 0:00:07]} d5 {[%emt 0:00:04]} 6. Bg2 {[%emt 0:00:19]} Bb4+ {[%emt 0:00:01]} 7. Bd2 {[%emt 0:00:03]} Bd6 {[%emt 0:00:02]} 8. O-O {[%emt 0:00:13]} O-O {[%emt 0:00:02]} 9. Nc3 {[%emt 0:02:25][%cal Oe2e4]} Nbd7 {[%emt 0:00:02] [#]} 10. e4 $1 {[%emt 0:00:13]} Nxe4 {[%emt 0:00:01]} 11. Nxe4 {[%emt 0:00:02]} dxe4 {[%emt 0:00:01]} 12. Ng5 {[%emt 0:00:00]} Bb7 {[%emt 0:00:01]} 13. Nxe4 {[%emt 0:00:06]} f5 {[%emt 0:00:01]} 14. Ng5 {[%emt 0:01:00]} Bxg2 {[%emt 0:00:03]} 15. Kxg2 {[%emt 0:00:05]} (15. Nxe6 Qe8 16. Nxf8 (16. Kxg2 $2 Qxe6 17. Re1 Qf7 $19) 16... Bxf1 17. Nxd7 Be2) 15... Qf6 {[%emt 0:01:10]} 16. Nf3 {[%emt 0:00:02]} f4 {[%emt 0:00:15]} 17. Qe2 {[%emt 0:00:34]} e5 {[%emt 0:01:10]} 18. dxe5 {[%emt 0:00:40]} Nxe5 {[%emt 0:00:09]} 19. Bc3 {[%emt 0:00:57][%cal Rc3e5]} Rae8 {[%emt 0:00:01]} 20. Bxe5 {[%emt 0:00:28]} Bxe5 {[%emt 0:00:01]} 21. Rae1 {[%emt 0:00:01][%cal Rf3e5]} fxg3 {[%emt 0:00:43]} 22. fxg3 {[%emt 0:00:32][%cal Rf3e5]} (22. Nxe5 $2 Rxe5 23. Qxe5 Qf3+ (23... gxf2 $2 24. Re3 $18) 24. Kg1 gxf2+ $19) 22... Qc6 $1 {[%emt 0:00:05]} (22... Bxg3 $2 23. Qxe8 Bxe1 (23... Rxe8 $2 24. Rxe8+ Kf7 25. Re4 $18) 24. Qxe1 $18) 23. Qe4 {[%emt 0:00:27]} Qxe4 {[%emt 0:00:13]} 24. Rxe4 {[%emt 0:00:01]} Bf6 {[%emt 0:00:04]} 25. Rfe1 {[%emt 0:00:23]} Rd8 {[%emt 0:00:35]} 26. g4 {[%emt 0:00:08]} h6 {[%emt 0:00:26]} 27. h4 {[%emt 0:00:03]} a5 {[%emt 0:00:46]} 28. R1e2 {[%emt 0:00:31]} Rd6 {[%emt 0:00:34]} 29. g5 {[%emt 0:00:13]} hxg5 {[%emt 0:00:01]} 30. hxg5 {[%emt 0:00:01]} Bc3 {[%emt 0:00:21]} 31. Re7 {[%emt 0:00:05]} Rf7 {[%emt 0:00:10]} 32. Kg3 {[%emt 0:01:06]} g6 {[%emt 0:00:54]} 33. R2e6 {[%emt 0:00:05]} Rxe6 {[%emt 0:00:34]} 34. Rxe6 $11 {[%emt 0:00:01][%mdl 4096] Endgame KRB-KRN} Kh7 {[%emt 0:00:01]} 35. Nh4 {[%emt 0:00:03][%cal Og3g4]} Rg7 {[%emt 0:00:16]} (35... Bd2 $6 36. Rxg6 (36. Nxg6 Bxg5 37. Kg4 Bd8 $14) 36... Rf1 37. Rh6+ Kg7 38. Rc6 Rg1+ 39. Kf2 Rxg5 40. Rxc7+ (40. Nf3 Rf5 $16) 40... Kf8 41. Nf3 $16) 36. Kg4 {[%emt 0:00:01]} Bd4 {[%emt 0:00:19] [#]} (36... Bb4 $11) 37. Nf3 {[%emt 0:00:02]} (37. Ng2 $1 $16) 37... Rd7 {[%emt 0:00:17]} (37... Bc5 $14) 38. Nd2 {[%emt 0:00:03] White is more active.} (38. Nxd4 $16 Rxd4+ 39. Kf3) 38... Kg7 {[%emt 0:00:08]} 39. Ne4 {[%emt 0:00:03]} Kf7 {[%emt 0:00:10]} 40. Rc6 {[%emt 0:00:01]} Be5 {[%emt 0:00:02]} 41. c5 {[%emt 0:00:02]} b5 {[%emt 0:00:08]} (41... Rd4 $5 42. Kf3 $8 Rd3+ 43. Ke2 Rd4 $11) 42. Ra6 {[%emt 0:00:01]} a4 {[%emt 0:00:01]} 43. bxa4 {[%emt 0:00:03]} Rd4 {[%emt 0:00:00]} 44. Kf3 {[%emt 0:00:02]} Rxa4 {[%emt 0:00:19]} 45. Rxa4 {[%emt 0:00:01]} bxa4 {[%emt 0:00:01] KB-KN} 46. Nd2 {[%emt 0:00:04]} Bd4 {[%emt 0:00:01]} 47. c6 {[%emt 0:00:03]} Ke6 {[%emt 0:00:11]} 48. Ke4 {[%emt 0:00:00]} Bc5 {[%emt 0:00:11]} 49. Nf3 {[%emt 0:00:01]} Be7 {[%emt 0:00:01]} 50. Ne5 {[%emt 0:00:02]} Bxg5 {[%emt 0:00:02]} 51. Nxg6 {[%emt 0:00:01]} Kd6 {[%emt 0:00:01]} 52. Ne5 {[%emt 0:00:02] And now Nf7+ would win.} Bf6 {[%emt 0:00:02]} 53. Nc4+ {[%emt 0:00:04]} (53. Ng4 $1 $11 Bh8 54. Kd3) 53... Kxc6 $17 {[%emt 0:00:06]} 54. Kd3 {[%emt 0:00:01]} Kc5 {[%emt 0:00:02]} 55. Nd2 {[%emt 0:00:03]} Kb4 {[%emt 0:00:07] Strongly threatening ...Ka3.} 56. Kc2 {[%emt 0:00:01]} c5 {[%emt 0:00:16]} (56... Ka3 $17 57. Kb1 Bg7) 57. Ne4 {[%emt 0:00:01]} (57. Kd3 $11) 57... Be5 {[%emt 0:00:07]} 58. Nf2 {[%emt 0:00:03]} c4 {[%emt 0:00:01] Wards off Nd3+} 59. Ne4 {[%emt 0:00:04]} Bd4 {[%emt 0:00:11]} 60. Nd2 {[%emt 0:00:01]} Bc5 {[%emt 0:00:04]} (60... Bf6 $17) 61. Ne4 {[%emt 0:00:01]} (61. a3+ $1 $11 {remains equal.} Kb5 (61... Kxa3 62. Nxc4+ Kb4 63. Nb2 $11) 62. Kc3) 61... Be3 {[%emt 0:00:00]} 62. Nf6 {[%emt 0:00:03]} Bd4 {[%emt 0:00:02]} 63. Ne4 {[%emt 0:00:01]} Ka3 {[%emt 0:00:02]} (63... a3 $17) 64. Kb1 {[%emt 0:00:01]} (64. Nd2 $11) 64... c3 {[%emt 0:00:00]} ({Black should try} 64... Be5 $17) 65. Ng3 $11 {[%emt 0:00:05]} Bf6 {[%emt 0:00:07]} 66. Ne2 {[%emt 0:00:02]} Be5 {[%emt 0:00:01]} 67. Nc1 {[%emt 0:00:03]} Bf4 {[%emt 0:00:01] ( -> ...Bxc1)} 68. Nd3 {[%emt 0:00:01]} Be3 $2 {[%emt 0:00:03][%mdl 8192]} (68... Bg5 $11) 69. Ne5 $2 {[%emt 0:00:01]} (69. Ne1 Kb4 70. Nc2+ Kc4 71. Nxe3+ Kd3 72. Nc2 Kd2 73. Nb4 Kd1 74. a3) 69... Bd4 {[%emt 0:00:04]} 70. Nd3 $1 {[%emt 0:00:02]} Be3 $2 {[%emt 0:00:06][%mdl 8192]} (70... c2+ $11 71. Kxc2 Kxa2) 71. Ne5 $2 {[%emt 0:00:01]} (71. Ne1 {mates} Kb4 72. Nc2+ Kc4 73. Nxe3+ Kd3 74. Nc2 Kd2 75. Nb4 Kd1 76. a3) 71... Bf4 {[%emt 0:00:01]} 72. Nd3 {[%emt 0:00:01]} Bg3 {[%emt 0:00:02]} 73. Nc1 {[%emt 0:00:02]} Bh4 {[%emt 0:00:05]} 74. Nd3 {[%emt 0:00:02]} c2+ {[%emt 0:00:02]} 75. Kxc2 {[%emt 0:00:01]} Kxa2 {[%emt 0:00:01]} 76. Nc5 {[%emt 0:00:02]} Be7 {[%emt 0:00:02]} 1/2-1/2

[Event "CCT Final-RR 2024"]
[Site "Oslo"]
[Date "2024.12.17"]
[Round "3"]
[White "Vachier-Lagrave, Maxime"]
[Black "Nepomniachtchi, Ian"]
[Result "1/2-1/2"]
[ECO "C42"]
[WhiteElo "2731"]
[BlackElo "2755"]
[Annotator "TA"]
[PlyCount "92"]
[EventDate "2024.12.11"]
[EventType "tourn"]
[EventCountry "NOR"]
[SourceTitle "playchess.com"]
[Source "ChessBase"]
[SourceQuality "1"]
[TimeControl "600+2"]

{[%evp 9,92,28,30,0,14,8,10,0,10,15,4,0,7,18,15,0,10,-8,0,-12,21,0,6,0,0,-13,14,7,16,17,18,0,16,-6,8,-2,16,-17,-24,-23,40,-7,0,0,0,0,12,10,112,90,104,-27,-34,-39,0,0,0,0,0,-4,0,-29,0,-23,0,0,0,0,0,0,0,0,0,0,7,0,58,0,0,0,0,0,0,0,0]} 1. e4 {[%emt 0:00:01]} e5 {[%emt 0:00:02]} 2. Nf3 {[%emt 0:00:01]} Nf6 {[%emt 0:00:01]} 3. Nxe5 {[%emt 0:00:01]} d6 {[%emt 0:00:01]} 4. Nf3 {[%emt 0:00:01]} Nxe4 {[%emt 0:00:01]} 5. Qe2 {[%emt 0:00:01]} Qe7 $1 {[%emt 0:00:03]} 6. g3 {[%emt 0:00:02]} Nf6 {[%emt 0:00:11]} 7. Qxe7+ {[%emt 0:00:12]} Bxe7 {[%emt 0:00:02]} 8. Bg2 {[%emt 0:00:02]} d5 {[%emt 0:00:03]} 9. O-O {[%emt 0:00:03]} O-O {[%emt 0:00:06]} 10. d3 {[%emt 0:00:09]} Bd6 {[%emt 0:00:04]} 11. Re1 {[%emt 0:00:40]} c6 {[%emt 0:00:05]} 12. a4 {[%emt 0:00:31]} a5 {[%emt 0:00:02]} 13. b3 {[%emt 0:00:13]} Na6 {[%emt 0:00:09]} 14. Bb2 {[%emt 0:00:04]} Nd7 {[%emt 0:00:21][%cal Bf6d7,Bd7c5,Bc5e4][%mdl 32]} 15. Re2 {[%emt 0:00:24]} Ndc5 {[%emt 0:00:14]} 16. Nc3 {[%emt 0:00:17][%cal Bb1c3,Bc3d1,Bd1e3][%mdl 32]} Bg4 {[%emt 0:00:32]} 17. Nd1 {[%emt 0:00:30]} Rfe8 {[%emt 0:00:33]} 18. Ne3 {[%emt 0:00:07]} Bd7 {[%emt 0:00:21]} 19. d4 {[%emt 0:00:41]} Ne4 {[%emt 0:00:09]} 20. c4 {[%emt 0:00:05]} Nb4 {[%emt 0:00:03]} 21. Rd1 {[%emt 0:00:40]} f6 {[%emt 0:00:18]} 22. Ne1 {[%emt 0:02:08]} Be6 {[%emt 0:00:59]} 23. Nd3 {[%emt 0:00:14]} Nxd3 {[%emt 0:00:15]} 24. Rxd3 {[%emt 0:00:02]} Bf7 {[%emt 0:00:17]} (24... f5 $11) 25. Rd1 {[%emt 0:00:11]} (25. cxd5 $14 {feels stronger.} cxd5 26. f3) 25... Bb4 {[%emt 0:00:29]} 26. cxd5 {[%emt 0:00:34]} cxd5 {[%emt 0:00:02]} 27. Rc1 {[%emt 0:00:01]} Nd2 {[%emt 0:00:52]} 28. Rc7 {[%emt 0:00:02]} Bh5 {[%emt 0:01:05]} (28... Rad8 $11) 29. Bxd5+ $16 {[%emt 0:00:01]} Kh8 {[%emt 0:00:01] [#]} 30. Rxd2 {[%emt 0:01:12]} Bxd2 $11 {[%emt 0:00:01]} 31. Bxb7 {[%emt 0:00:02]} Ra7 {[%emt 0:00:28][%cal Oe8b8] White must now prevent ...Rb8!.} (31... Rab8 $5 32. Nf1 Re1 $15) 32. d5 $1 {[%emt 0:00:01]} Rb8 $1 {[%emt 0:00:44]} 33. Rc8+ {[%emt 0:00:14]} ({Don't blunder} 33. Nc4 $2 Raxb7 (33... Rbxb7 34. Rc8+) 34. Rxb7 Rxb7 $19) 33... Rxc8 {[%emt 0:00:01]} 34. Bxc8 {[%emt 0:00:01]} Bb4 {[%emt 0:00:42]} 35. Kg2 {[%emt 0:00:54]} Rc7 {[%emt 0:00:08]} 36. Be6 {[%emt 0:00:03]} Bf7 {[%emt 0:00:05]} 37. Bxf7 {[%emt 0:00:06]} Rxf7 {[%emt 0:00:01][%mdl 4096] Endgame KRB-KBN} 38. Kf3 {[%emt 0:00:07]} Kg8 {[%emt 0:00:22]} 39. Bd4 {[%emt 0:00:09]} Rb7 {[%emt 0:00:04] Against Bb6} 40. Nc4 {[%emt 0:00:02]} Rd7 {[%emt 0:00:21]} 41. Ke4 {[%emt 0:00:01]} Re7+ $1 {[%emt 0:00:01]} 42. Kd3 {[%emt 0:00:01] Threatens to win with Bc3.} Re1 {[%emt 0:00:12]} 43. Bb6 {[%emt 0:00:03]} ({Better is} 43. Be3 $14) 43... Rd1+ {[%emt 0:00:05]} 44. Ke4 {[%emt 0:00:04]} Re1+ $1 {[%emt 0:00:09]} 45. Kd3 {[%emt 0:00:07]} (45. Kd4 $5 Rd1+ $8 46. Ke4 Re1+ 47. Kf3 $11) 45... Rd1+ {[%emt 0:00:01]} 46. Ke4 {[%emt 0:00:01]} Re1+ $1 {[%emt 0:00:02]} 1/2-1/2

[Event "CCT Final-RR 2024"]
[Site "Oslo"]
[Date "2024.12.17"]
[Round "3"]
[White "Lazavik, Denis"]
[Black "Firouzja, Alireza"]
[Result "1-0"]
[ECO "A13"]
[WhiteElo "2578"]
[BlackElo "2763"]
[Annotator "TA"]
[PlyCount "109"]
[EventDate "2024.12.11"]
[EventType "tourn"]
[EventCountry "NOR"]
[SourceTitle "playchess.com"]
[Source "ChessBase"]
[SourceQuality "1"]
[TimeControl "600+2"]

{[%evp 11,109,16,13,-8,0,-4,2,0,19,6,21,9,21,15,22,0,-12,0,11,0,0,-26,-10,-43,-24,-38,-42,-68,-56,-57,-25,-58,-20,-20,-15,-20,-10,-14,-10,-10,0,0,0,-22,0,0,0,0,0,0,0,0,0,0,30,18,578,72,358,352,350,339,360,365,362,380,433,424,410,410,370,402,395,410,487,495,488,512,508,509,498,498,560,544,605,602,595,562,503,653,653,642,642,698,687,621,785,785,1019,996]} 1. c4 {[%emt 0:00:05]} e6 {[%emt 0:00:08]} 2. Nf3 {[%emt 0:00:04]} d5 {[%emt 0:00:01]} 3. cxd5 {[%emt 0:00:05]} exd5 {[%emt 0:00:02]} 4. g3 {[%emt 0:00:01]} Nf6 {[%emt 0:00:18]} 5. Bg2 {[%emt 0:00:03]} Bd6 {[%emt 0:00:49]} 6. O-O {[%emt 0:00:03]} O-O {[%emt 0:00:02]} 7. Nc3 {[%emt 0:00:08]} Re8 {[%emt 0:00:02]} 8. d3 {[%emt 0:00:14]} h6 {[%emt 0:00:12]} 9. a3 {[%emt 0:00:41]} a5 {[%emt 0:00:45]} 10. Qc2 {[%emt 0:00:06]} Na6 {[%emt 0:00:38]} 11. e4 {[%emt 0:00:22]} c6 {[%emt 0:00:12]} 12. Re1 {[%emt 0:00:16]} Bg4 {[%emt 0:00:30]} 13. h3 {[%emt 0:00:06]} Bxf3 {[%emt 0:00:22]} 14. Bxf3 {[%emt 0:00:02]} Be5 {[%emt 0:00:01]} 15. Bg2 {[%emt 0:00:34]} Bd4 {[%emt 0:00:42]} 16. Re2 {[%emt 0:01:34]} Nc5 {[%emt 0:00:44]} 17. Bd2 {[%emt 0:01:32]} Qb6 {[%emt 0:00:08]} 18. Rf1 {[%emt 0:00:19][%cal Re4d5]} Qb3 {[%emt 0:00:15]} 19. Qb1 {[%emt 0:02:47]} dxe4 {[%emt 0:00:06]} 20. dxe4 {[%emt 0:00:01]} Rad8 {[%emt 0:00:01]} 21. Be3 {[%emt 0:00:48]} Bxc3 {[%emt 0:00:59]} 22. Bxc5 {[%emt 0:00:04]} Qb5 {[%emt 0:00:01][%csl LRc5,LRe2]} 23. Rc2 {[%emt 0:00:10]} Qxc5 {[%emt 0:00:02]} 24. Rxc3 {[%emt 0:00:01]} Qd4 {[%emt 0:00:07][%cal Rf6e4]} 25. Re1 {[%emt 0:00:05]} Nd7 {[%emt 0:01:00][%cal Bf6d7,Bd7e5,Be5d3][%mdl 32]} 26. Rd3 {[%emt 0:00:07]} Qb6 {[%emt 0:00:01]} 27. Qc2 {[%emt 0:00:02]} Ne5 {[%emt 0:00:10]} 28. Rb3 {[%emt 0:00:04]} Qa7 {[%emt 0:00:18]} 29. Kh2 {[%emt 0:00:07]} a4 {[%emt 0:00:12]} 30. Rbe3 {[%emt 0:00:06]} Qd4 {[%emt 0:01:32]} 31. f4 {[%emt 0:00:08]} Nd3 {[%emt 0:00:01]} 32. R1e2 {[%emt 0:00:03]} Qc5 {[%emt 0:00:18]} 33. e5 {[%emt 0:00:10] aiming for Be4.} (33. Rxd3 $2 {too greedy.} Qxc2 34. Rxd8 Qxe2 $19) 33... Qb6 $2 {[%emt 0:00:21][%mdl 8192]} 34. h4 $2 {[%emt 0:00:03]} (34. Rxd3 $18 Rxd3 35. Qxd3) 34... Qb3 $2 {[%emt 0:00:02][%mdl 8192] [#]} (34... Qb5 $16) 35. Be4 $1 $18 {[%emt 0:00:03]} Qxc2 {[%emt 0:00:07]} 36. Rxc2 {[%emt 0:00:01]} Nxe5 {[%emt 0:00:02]} 37. fxe5 {[%emt 0:00:01]} Rd4 {[%emt 0:00:01]} 38. Bf3 {[%emt 0:00:03]} g5 {[%emt 0:00:03]} 39. hxg5 {[%emt 0:00:02]} hxg5 {[%emt 0:00:00]} 40. Rce2 {[%emt 0:00:00]} g4 {[%emt 0:00:02]} 41. Be4 {[%emt 0:00:05]} Kg7 {[%emt 0:00:01]} 42. Bc2 {[%emt 0:00:01]} Rh8+ {[%emt 0:00:04]} 43. Kg2 {[%emt 0:00:01]} Rhd8 {[%emt 0:00:02]} 44. Re4 {[%emt 0:00:01]} Rxe4 {[%emt 0:00:00]} 45. Bxe4 {[%emt 0:00:01][%mdl 4096] Endgame KRB-KR} Kh6 {[%emt 0:00:02]} 46. Kf2 {[%emt 0:00:02]} Re8 {[%emt 0:00:02]} 47. Bc2 {[%emt 0:00:01][%cal Be4c2,Bc2d1,Bd1g4,Bg4f3,Bf3c6][%mdl 32]} b5 {[%emt 0:00:01]} 48. Re4 {[%emt 0:00:01]} Kg5 {[%emt 0:00:01]} 49. Bd1 {[%emt 0:00:02]} Rd8 {[%emt 0:00:05]} 50. Bxg4 {[%emt 0:00:03]} Rd2+ {[%emt 0:00:01]} 51. Re2 {[%emt 0:00:01]} Rd4 {[%emt 0:00:03]} 52. Bf3 {[%emt 0:00:01]} c5 {[%emt 0:00:01]} 53. Rc2 {[%emt 0:00:06]} c4 {[%emt 0:00:04]} 54. Bc6 {[%emt 0:00:03]} c3 {[%emt 0:00:02]} 55. bxc3 {[%emt 0:00:02]} 1-0

[Event "CCT Final-RR 2024"]
[Site "Oslo"]
[Date "2024.12.18"]
[Round "4"]
[White "Carlsen, Magnus"]
[Black "Vachier-Lagrave, Maxime"]
[Result "1-0"]
[ECO "A12"]
[WhiteElo "2831"]
[BlackElo "2731"]
[Annotator "TA"]
[PlyCount "101"]
[EventDate "2024.12.11"]
[EventType "tourn"]
[EventCountry "NOR"]
[SourceTitle "playchess.com"]
[Source "ChessBase"]
[SourceQuality "1"]
[TimeControl "600+2"]

{[%evp 14,101,27,34,29,25,33,32,30,22,58,42,62,52,57,39,49,34,41,24,68,68,47,48,47,58,55,58,60,33,67,28,45,53,46,46,50,39,40,47,92,81,135,137,197,192,212,145,217,200,247,220,429,433,486,510,489,498,465,493,493,487,797,373,605,536,1200,977,1066,1063,671,600,720,278,1052,1034,1371,1788,1639,1723,1737,1365,1618,1610,1872,1894,29985,29986,29986,29987]} 1. Nf3 {[%emt 0:00:04]} d5 {[%emt 0:00:03]} 2. e3 {[%emt 0:00:09]} Nf6 {[%emt 0:00:11]} 3. b3 {[%emt 0:00:05]} g6 {[%emt 0:00:04]} 4. Bb2 {[%emt 0:00:07]} Bg7 {[%emt 0:00:02]} 5. c4 {[%emt 0:00:04]} c6 {[%emt 0:00:38]} 6. Be2 {[%emt 0:00:07]} O-O {[%emt 0:00:03]} 7. O-O {[%emt 0:00:03]} Bg4 {[%emt 0:00:03]} 8. h3 {[%emt 0:00:31]} Bxf3 {[%emt 0:00:02]} 9. Bxf3 {[%emt 0:00:02]} Re8 {[%emt 0:00:21]} 10. d4 {[%emt 0:00:21]} e6 {[%emt 0:00:09]} 11. Nc3 {[%emt 0:00:27][%cal Bb1c3,Bc3e2,Be2f4][%mdl 32]} a5 {[%emt 0:00:02]} 12. Qc2 {[%emt 0:00:08]} Na6 {[%emt 0:00:03]} 13. Rfd1 {[%emt 0:00:04]} Qe7 {[%emt 0:00:30]} 14. a3 {[%emt 0:00:05]} Rab8 {[%emt 0:00:22]} 15. Rac1 {[%emt 0:00:37]} b5 {[%emt 0:01:02][%cal Bb7b5,Bb5b4][%mdl 32]} 16. Ne2 {[%emt 0:01:01]} Nd7 {[%emt 0:00:12]} 17. cxd5 {[%emt 0:00:26]} cxd5 {[%emt 0:00:02]} 18. Nf4 {[%emt 0:00:02]} b4 {[%emt 0:01:28]} 19. a4 {[%emt 0:00:30]} Nb6 {[%emt 0:00:01]} 20. Qe2 {[%emt 0:00:22]} Qa7 {[%emt 0:00:46]} 21. Nd3 {[%emt 0:00:46] Hoping for Ne5.} Nd7 {[%emt 0:00:03]} 22. Rc6 {[%emt 0:00:26]} (22. e4 {is more complex.} Bxd4 23. Bxd4 Qxd4 24. Nc5) 22... Rec8 {[%emt 0:00:49]} 23. Rdc1 {[%emt 0:00:01]} Rxc6 {[%emt 0:00:39]} 24. Rxc6 {[%emt 0:00:02]} Qb7 {[%emt 0:00:01]} 25. Qc2 {[%emt 0:00:03]} Rd8 {[%emt 0:00:07] aiming for ...Ndb8.} 26. Qc1 {[%emt 0:00:08]} Ndb8 {[%emt 0:00:17]} 27. Rc2 {[%emt 0:00:03] White is more active.} Nd7 {[%emt 0:00:01]} ({Black should try} 27... Rd7) 28. Be2 {[%emt 0:00:07]} Bf8 {[%emt 0:00:13] [#]} (28... Ndb8 $16 {might work better.} 29. Ne5 Bf8) 29. Ne5 $1 $18 {[%emt 0:01:16]} Ndb8 {[%emt 0:00:01] Black is weak on the light squares} 30. h4 {[%emt 0:00:19][%cal Oe3e4]} Bd6 {[%emt 0:00:30]} (30... f6 $16) 31. h5 {[%emt 0:00:02]} Nc7 {[%emt 0:00:02]} 32. e4 {[%emt 0:00:17]} Bxe5 $2 {[%emt 0:00:41]} (32... Ne8 33. exd5 exd5) 33. dxe5 {[%emt 0:00:01]} Ne8 {[%emt 0:00:02]} 34. Qg5 {[%emt 0:00:43]} Rc8 {[%emt 0:00:13]} 35. Rxc8 {[%emt 0:00:01]} Qxc8 {[%emt 0:00:01]} 36. exd5 {[%emt 0:00:02]} exd5 {[%emt 0:00:22]} 37. Bb5 {[%emt 0:01:12]} Nc6 {[%emt 0:00:20] Against Qe7} (37... d4 $142 38. Bxd4 Nc7) 38. h6 {[%emt 0:00:02]} (38. hxg6 $142 hxg6 39. Qc1) 38... Qe6 $2 {[%emt 0:00:08]} (38... Kf8 39. Qe3 Nd8) 39. Qc1 {[%emt 0:00:08]} Na7 {[%emt 0:00:09]} 40. Qc5 {[%emt 0:00:19]} Nc8 {[%emt 0:00:17]} 41. g3 {[%emt 0:00:04]} g5 {[%emt 0:00:03]} 42. Qe3 {[%emt 0:00:02]} f6 {[%emt 0:00:03]} 43. Qd4 $2 {[%emt 0:00:04]} (43. Bxe8 Qxe8 44. Qc1 (44. exf6 Qxe3 45. fxe3 Kf7 $16)) 43... Nc7 $2 {[%emt 0:00:11]} (43... fxe5 44. Qe3 (44. Qxe5 Qxe5 45. Bxe5 Ncd6 $18) 44... Ncd6 45. Bxe5 (45. Qxg5+ Kf8 $18) 45... Qe7) 44. exf6 {[%emt 0:00:01][%cal Of6f7] f7+! would kill now.} Nxb5 {[%emt 0:00:04]} 45. f7+ {[%emt 0:00:01]} Kxf7 {[%emt 0:00:01]} 46. Qg7+ {[%emt 0:00:01]} ({Weaker is} 46. axb5 Qxh6 47. Qc5 (47. Qxd5+ Qe6 $18) 47... Qe6 $18) 46... Ke8 {[%emt 0:00:00]} 47. Qh8+ {[%emt 0:00:01]} Kd7 {[%emt 0:00:01]} 48. Qxh7+ {[%emt 0:00:01]} Ne7 {[%emt 0:00:08]} 49. axb5 {[%emt 0:00:01]} Qe2 {[%emt 0:00:03]} 50. Bf6 {[%emt 0:00:02]} a4 {[%emt 0:00:01]} 51. Qxe7+ {[%emt 0:00:02]} 1-0

[Event "CCT Final-RR 2024"]
[Site "Oslo"]
[Date "2024.12.18"]
[Round "4"]
[White "Firouzja, Alireza"]
[Black "Nepomniachtchi, Ian"]
[Result "1/2-1/2"]
[ECO "E05"]
[WhiteElo "2763"]
[BlackElo "2755"]
[Annotator "TA"]
[PlyCount "103"]
[EventDate "2024.12.11"]
[EventType "tourn"]
[EventCountry "NOR"]
[SourceTitle "playchess.com"]
[Source "ChessBase"]
[SourceQuality "1"]
[TimeControl "600+2"]

{[%evp 23,103,-47,0,0,0,0,-1,-17,-23,-35,-11,-14,-29,-16,-18,-26,0,0,9,14,25,0,29,0,5,0,0,-29,-24,-26,-28,-25,-23,-56,0,-6,0,0,0,0,0,0,0,-10,-13,-29,0,-30,0,0,0,0,0,0,0,0,29,6,5,5,5,0,0,0,0,0,0,0,6,0,0,0,0,0,0,0,0,0,0,0,0,0]} 1. Nf3 {[%emt 0:00:01]} d5 {[%emt 0:00:03]} 2. c4 {[%emt 0:00:02]} e6 {[%emt 0:00:02]} 3. g3 {[%emt 0:00:01]} Nf6 {[%emt 0:00:01]} 4. Bg2 {[%emt 0:00:02]} Be7 {[%emt 0:00:01]} 5. O-O {[%emt 0:00:02]} O-O {[%emt 0:00:03]} 6. d4 {[%emt 0:00:02]} dxc4 {[%emt 0:00:04]} 7. Na3 {[%emt 0:00:02]} Bxa3 {[%emt 0:00:28]} 8. bxa3 {[%emt 0:00:01]} Bd7 {[%emt 0:00:06]} 9. Ne5 {[%emt 0:00:03]} Bc6 {[%emt 0:00:14]} 10. Nxc6 {[%emt 0:00:02]} Nxc6 {[%emt 0:00:01]} 11. Bb2 {[%emt 0:00:01]} Nd5 {[%emt 0:00:48]} 12. Rc1 {[%emt 0:00:05]} Nb6 {[%emt 0:00:03]} (12... b5 $15) 13. e3 $11 {[%emt 0:00:09]} Qe7 {[%emt 0:00:07]} 14. Rb1 {[%emt 0:00:13]} Rfd8 {[%emt 0:00:24]} 15. Qc1 {[%emt 0:00:04]} Rab8 {[%emt 0:00:12]} 16. Ba1 {[%emt 0:00:12]} e5 {[%emt 0:00:38]} 17. d5 {[%emt 0:00:14]} Nxd5 {[%emt 0:00:09]} 18. Qxc4 {[%emt 0:00:02]} Nb6 {[%emt 0:00:18]} 19. Qc2 {[%emt 0:00:04]} Rd6 {[%emt 0:00:08]} 20. a4 {[%emt 0:00:48]} Rbd8 {[%emt 0:00:50]} 21. Bc3 {[%emt 0:00:29]} a5 {[%emt 0:00:00]} 22. Be4 {[%emt 0:01:36]} h6 {[%emt 0:00:33]} 23. Rfc1 {[%emt 0:00:32]} Qe6 {[%emt 0:00:31]} 24. Be1 {[%emt 0:00:25]} g6 {[%emt 0:00:22]} 25. Qb3 {[%emt 0:02:14]} Qxb3 {[%emt 0:00:07]} 26. axb3 {[%emt 0:00:04]} Nd5 {[%emt 0:00:05]} 27. g4 {[%emt 0:01:04]} R8d7 {[%emt 0:00:19]} 28. Rc4 {[%emt 0:00:09]} Ncb4 {[%emt 0:00:23]} (28... Nde7 $1 $15) 29. Bxd5 $11 {[%emt 0:00:08]} Rxd5 {[%emt 0:00:15]} 30. Bxb4 {[%emt 0:00:01]} axb4 {[%emt 0:00:01]} 31. Rxb4 {[%emt 0:00:01]} b6 {[%emt 0:00:06]} 32. Rb2 {[%emt 0:00:36]} Rc5 {[%emt 0:00:03]} 33. Re4 {[%emt 0:00:38]} f6 {[%emt 0:00:22]} 34. b4 {[%emt 0:00:13]} Rc1+ {[%emt 0:00:01]} 35. Kg2 {[%emt 0:00:01]} Ra1 {[%emt 0:00:21]} 36. b5 {[%emt 0:00:05]} Rc1 {[%emt 0:00:10]} 37. a5 {[%emt 0:00:15]} bxa5 {[%emt 0:00:02]} 38. Ra4 {[%emt 0:00:01]} Kf7 {[%emt 0:00:52]} 39. Rxa5 {[%emt 0:00:02]} h5 {[%emt 0:00:05]} 40. b6 {[%emt 0:00:15]} cxb6 {[%emt 0:00:03]} (40... hxg4 $2 {too greedy.} 41. b7 Rdd1 42. Kg3 Rg1+ 43. Kh4 $18) 41. Rxb6 {[%emt 0:00:01]} Rc4 {[%emt 0:00:28]} ({Of course not} 41... hxg4 $6 42. Raa6 $16) 42. gxh5 {[%emt 0:00:09]} Rg4+ {[%emt 0:00:07]} 43. Kf3 {[%emt 0:00:02]} gxh5 {[%emt 0:00:01]} 44. Raa6 {[%emt 0:00:03]} Rg6 {[%emt 0:00:17]} 45. Ke4 {[%emt 0:00:03]} Rg4+ {[%emt 0:00:01]} 46. Kf3 {[%emt 0:00:03]} Rg6 {[%emt 0:00:01]} 47. Ke4 {[%emt 0:00:07]} Kg7 {[%emt 0:00:01]} 48. Kf5 {[%emt 0:00:05]} Rf7 {[%emt 0:00:08]} 49. f4 {[%emt 0:00:01]} exf4 {[%emt 0:00:02]} 50. exf4 {[%emt 0:00:01]} h4 {[%emt 0:00:16]} 51. h3 {[%emt 0:00:04]} Rg3 {[%emt 0:00:02]} 52. Rxf6 {[%emt 0:00:02]} 1/2-1/2